Cogmind - Beta 13 @@@ ROGUE MODE // 2024.02.28 @ 22:26:41 Player: biznut Result: Destroyed by L-31 Rogue with Katana Performance ------------- Evolutions (1) 500 Regions Visited (2) 400 Robots Destroyed (57) 285 Value Destroyed (1344) 1344 Prototype IDs (5) 100 Alien Tech Used (0) 0 Bonus (16) 16 TOTAL SCORE: 2645 Bonus ------- High Alert Combat Kills 16 Cogmind --------- Core Integrity 0/400 Matter 27/300 Energy 100/100 System Corruption 2% Temperature Cool (0) Movement Core (700) Ox13 Location -9/Materials Parts ------- > --- POWER (1) -------- (None) > --- PROPULSION (4) --- (None) > --- UTILITY (2) ------ High-capacity Storage Unit > --- WEAPON (2) ------- (None) > --- INVENTORY (20) --- Ion Engine Deuterium Engine Deuterium Engine Deuterium Engine Improved Aluminum Leg Cooling System Large Storage Unit Visual Processing Unit Signal Interpreter Improved Targeting Computer Advanced Targeting Computer Advanced Targeting Computer ECM Suite Medium Armor Plating Medium Armor Plating Medium Armor Plating Recalibrator Shotgun Rocket Launcher Mining Laser Peak State ------------ > --- POWER ------------ Deuterium Engine > --- PROPULSION ------- Carbon-fiber Leg Carbon-fiber Leg Carbon-fiber Leg Carbon-fiber Leg > --- UTILITY ---------- High-capacity Storage Unit Hacking Suite > --- WEAPON ----------- Shotgun Improved Light Cannon > --- INVENTORY -------- Ion Engine Deuterium Engine Deuterium Engine Improved Aluminum Leg Cooling System Large Storage Unit High-capacity Battery Visual Processing Unit Signal Interpreter Improved Targeting Computer Advanced Targeting Computer Advanced Targeting Computer ECM Suite Medium Armor Plating Medium Armor Plating Medium Armor Plating Recalibrator Shotgun Rocket Launcher Mining Laser [Rating: 27] Favorites ----------- Power Ion Engine Engine Ion Engine Power Core Light Nuclear Core Propulsion Aluminum Leg Leg Aluminum Leg Utility Small Storage Unit Device High-powered Tractor Beam Storage Small Storage Unit Processor Improved Targeting Computer Hackware Hacking Suite Protection Utility Shielding Weapon Autogun Energy Gun EM Pulse Gun Ballistic Gun Autogun Ballistic Cannon Improved Light Cannon Launcher Rocket Launcher Special Weapon Mining Laser Build | -11 -10 -9 ------- Run | Yrd Mat Mat Slots Evolved 2 | . . 2 Power . | . . . Propulsion 2 | . . 2 Utility . | . . . Weapon . | . . . Parts Attached 48 | 7 8 33 Power 6 | 1 2 3 Engine 5 | 1 2 2 Core 1 | . . 1 Reactor . | . . . Propulsion 15 | 2 1 12 Treads . | . . . Leg 15 | 2 1 12 Wheel . | . . . Hover . | . . . Flight . | . . . Utility 7 | 1 3 3 Device 1 | . 1 . Storage 3 | 1 . 2 Processor 1 | . 1 . Hackware 1 | . . 1 Protection 1 | . 1 . Artifact . | . . . Weapon 20 | 3 2 15 Energy Gun 3 | 3 . . Energy Cannon . | . . . Ballistic Gun 8 | . 2 6 Ballistic Cannon 3 | . . 3 Launcher 4 | . . 4 Special Weapon 2 | . . 2 Impact Weapon . | . . . Slashing Weapon . | . . . Piercing Weapon . | . . . Special Melee Weapon . | . . . Unidentified Prototypes . | . . . Parts Lost 10 | . 1 9 Power 1 | . . 1 Propulsion 5 | . . 5 Utility 2 | . 1 1 Weapon 2 | . . 2 Highest Loss Streak 4 | . 1 4 To Critical Strikes . | . . . Average Slot Usage (%) 90 | . 93 86 Engine 11 | . 14 7 Core 1 | . . 3 Leg 27 | . 23 32 Storage 12 | . 14 11 Processor 6 | . 9 2 Hackware 3 | . . 8 Protection 1 | . 2 . Energy Gun 4 | . 8 . Ballistic Gun 18 | . 19 16 Ballistic Cannon 1 | . . 3 Naked Turns . | . . . Heaviest Build 56 | 14 16 56 Greatest Support 60 | 20 20 60 Greatest Overweight (x) 13 | . 1 13 Average Overweight (x) . | . . . Largest Inventory Capacity 20 | 8 8 20 Average Capacity 10 | 6 8 13 Most Carried 20 | 6 8 20 Average Carried 10 | 3 7 12 Final Capacity 20 | 8 8 20 Final Carried 20 | 6 8 20 Class Distribution -------------------- 97% | Mutant Dominant Class ---------------- Mutant | -10/Materials Mutant | -9/Materials Resources | -11 -10 -9 ----------- Run | Yrd Mat Mat Matter Collected 1451 | 232 534 685 Remotely 127 | . 127 . Salvage Created 1496 | . 745 751 Parts 119 | . 50 69 Haulers Intercepted 1 | . 1 . Recyclers Shooed 3 | . . 3 Parts Field Recycled . | . . . Retrieved Matter . | . . . Parts Self-Destructed . | . . . Prevented . | . . . Kills | -11 -10 -9 ------- Run | Yrd Mat Mat Combat Hostiles Destroyed 40 | . 13 27 Guns 21 | . 12 9 Cannons 5 | . . 5 AOE 14 | . 1 13 Classes Destroyed 12 | . 7 5 Worker 2 | . . 2 Builder 4 | . . 4 Tunneler 2 | . 1 1 Hauler 1 | . 1 . Recycler 2 | . 2 . Mechanic 1 | . . 1 Operator 2 | . 1 1 Watcher 3 | . 3 . Swarmer 11 | . 3 8 Grunt 24 | . 10 14 Brawler 1 | . . 1 Sentry 4 | . . 4 Best Kill Streak 9 | . 3 9 Combat Bots Only 8 | . 3 8 Max Kills in Single Turn 6 | . 1 6 Gunslinging . | . . . Exploded 6 | . 1 6 Melee . | . . . Uniques/NPCs Destroyed . | . . . Combat | -11 -10 -9 -------- Run | Yrd Mat Mat Hostile Shots Fired 208 | . 56 152 Missed 63 | . 17 46 Damage Taken 2188 | . 508 1680 Core 548 | . 132 416 Absorbed by Shields . | . . . Redirected to Shielding 6 | . 6 . Regen/Repaired (Parts) 31 | . 31 . Core Remaining (%) 73 | 100 47 . Volleys Fired 135 | . 58 77 Largest 2 | . 2 2 Hottest 139 | . 90 139 Shots Fired 259 | . 116 143 Gun 195 | . 116 79 Cannon 42 | . . 42 Launcher 14 | . . 14 Special 8 | . . 8 Kinetic 201 | . 80 121 Thermal 26 | . 18 8 Explosive 14 | . . 14 Electromagnetic 18 | . 18 . Robot Hit Streak 14 | . 6 14 Robot Miss Streak 8 | . 4 8 Penetration Max . | . . . Secondary Targets . | . . . Shots Hit Robots 150 | . 64 86 Core Hits 86 | . 33 53 Critical Kills 1 | . . 1 Critical Parts Destroyed . | . . . Critical Strikes 2 | . 1 1 Burn 1 | . 1 . Destroy 1 | . . 1 Melee Attacks . | . . . Impact . | . . . Slashing . | . . . Piercing . | . . . Sneak Attacks . | . . . Combat Hostiles . | . . . Follow-up Attacks . | . . . Damage Inflicted 3580 | . 938 2642 Guns 1669 | . 896 773 Cannons 629 | . . 629 Explosions 1282 | . 42 1240 Melee . | . . . Ramming . | . . . Kinetic 2052 | . 650 1402 Thermal 143 | . 143 . Explosive 1240 | . . 1240 Electromagnetic 145 | . 145 . Impact . | . . . Slashing . | . . . Piercing . | . . . Highest Corruption 2 | . . 2 Average Corruption 1 | . . 1 Corruption Purged . | . . . Corruption Blocked . | . . . Effects 12 | . . 12 Message Errors 2 | . . 2 Matter Fused 3 | . . 3 Energy Discharges 3 | . . 3 Parts Fused 1 | . . 1 Data Loss (minor) 2 | . . 2 Data Loss (major) 1 | . . 1 Overload Shots . | . . . Overflow Damage 56 | . . 56 Projectiles 1 | . . 1 Explosions 55 | . . 55 Melee . | . . . Knockbacks 8 | . . 8 Impact . | . . . Kinetic 8 | . . 8 Secondary . | . . . Self-Inflicted Damage 55 | . . 55 Shots 3 | . . 3 Rammed . | . . . Targets Rammed . | . . . Kicked . | . . . Crushed . | . . . Highest Temperature 267 | . 267 48 Average Temperature 29 | . 42 12 Received Heat Transfer 702 | . 228 474 Effects 1 | . 1 . Energy Bleed 1 | . 1 . Siege Activations . | . . . Robots Corrupted . | . . . Combat Hostiles . | . . . Parts Fried . | . . . Impact Corruptions . | . . . Robots Melted . | . . . Combat Hostiles . | . . . Parts Melted . | . . . Heat Transferred 370 | . 370 . Parts Sabotaged . | . . . Parts Stolen . | . . . Parts Stripped . | . . . Power Chain Reactions 1 | . 1 . Alert | -11 -10 -9 ------- Run | Yrd Mat Mat Peak Influence 456 | . 153 456 Initial 16 | . . 16 Average 131 | . 77 196 Maximum Alert Level 2 | . . 2 Low Security (%) 80 | 100 100 58 Level 1 16 | . . 35 Level 2 2 | . . 5 Level 3 . | . . . Level 4 . | . . . Level 5 . | . . . High Security . | . . . Max Security . | . . . Squads Dispatched 10 | . 4 6 Investigation 7 | . 3 4 Extermination . | . . . Reinforcement 3 | . 1 2 Assault . | . . . Garrison . | . . . Intercept . | . . . Searches Triggered . | . . . Construction Impeded . | . . . Haulers Reinforced . | . . . Active Scanning Responses . | . . . Cargo Convoy Interrupts . | . . . Stealth | -11 -10 -9 --------- Run | Yrd Mat Mat Distress Signals 8 | . 2 6 Communications Jammed . | . . . Distress Signals . | . . . Times Spotted 73 | . 24 49 Peak Tracking Total 8 | . 4 8 Tactical Retreats 3 | . 2 1 Traps | -11 -10 -9 ------- Run | Yrd Mat Mat Traps Triggered 6 | . 3 3 Indirectly . | . . . Trap Hack Attempts . | . . . Triggered . | . . . Disarmed . | . . . Reprogrammed . | . . . Reused . | . . . Traps Extracted . | . . . Installed . | . . . Triggered . | . . . Machines | -11 -10 -9 ---------- Run | Yrd Mat Mat Machines Disabled 2 | . . 2 Max in Single Turn 2 | . . 2 Machines Repaired . | . . . Machines Dismantled . | . . . Machines Sabotaged . | . . . Overloaded Fab Kills . | . . . Hacking | -11 -10 -9 --------- Run | Yrd Mat Mat Machines Accessed 15 | . 10 5 Terminals 10 | . 7 3 Fabricators . | . . . Repair Stations 1 | . 1 . Recycling Units 3 | . 2 1 Scanalyzers 1 | . . 1 Garrison Access . | . . . Total Hacks 45 | . 28 17 Successful 23 | . 14 9 Failed 22 | . 14 8 Catastrophic 4 | . 2 2 Database Lockouts . | . . . Manual 2 | . 2 . Terminals 33 | . 21 12 Fabricators . | . . . Repair Stations 2 | . 2 . Recycling Units 8 | . 5 3 Scanalyzers 2 | . . 2 Garrison Access . | . . . Terminal Hacks 15 | . 9 6 Prototype ID Bank 3 | . 2 1 Unreport Threat 2 | . 1 1 Locate Traps 1 | . 1 . Dispatch Records 2 | . 1 1 Surveillance Status 1 | . . 1 Transport Status 1 | . 1 . Recall Investigation 1 | . . 1 Hauler Manifests 2 | . 2 . Zone Layout 2 | . 1 1 Fabricator Hacks . | . . . Repair Station Hacks 2 | . 2 . Scan Component 1 | . 1 . Repair 1 | . 1 . Recycling Unit Hacks 4 | . 3 1 Report Inventory 3 | . 2 1 Retrieve Components 1 | . 1 . Scanalyzer 2 | . . 2 Insert Component 1 | . . 1 Analyze 1 | . . 1 Garrison Access Hacks . | . . . Unauthorized Hacks . | . . . Terminals . | . . . Fabricators . | . . . Repair Stations . | . . . Recycling Units . | . . . Scanalyzers . | . . . Garrison Access . | . . . Data Cores Recovered . | . . . Used . | . . . Hacking Detections 15 | . 10 5 Full Trace Events 7 | . 3 4 Feedback Events . | . . . Feedback Blocked . | . . . Robot Schematics Acquired . | . . . Robots Built . | . . . Authchips . | . . . Time . | . . . Total Robot Build Rating . | . . . Part Schematics Acquired 1 | . . 1 Parts Built . | . . . Authchips . | . . . Time . | . . . Total Part Build Rating . | . . . Parts Repaired 1 | . 1 . Time 26 | . 26 . Parts Recycled . | . . . Recycled Matter . | . . . Retrieved Matter . | . . . Retrieved Components 6 | . 6 . Parts Scanalyzed 1 | . . 1 Part Schematics Acquired 1 | . . 1 Parts Damaged . | . . . Bothacking | -11 -10 -9 ------------ Run | Yrd Mat Mat Used RIF Installer . | . . . Robots Hacked . | . . . Non-combat . | . . . Combat . | . . . Robot Hacks Applied . | . . . Relay Couplers Released . | . . . Fabnet Peak Effective % . | . . . Robots Rewired . | . . . Allies Hacked . | . . . Hacks Repelled . | . . . Allies | -11 -10 -9 -------- Run | Yrd Mat Mat Total Allies . | . . . Largest Group . | . . . Highest-Rated Group . | . . . Highest-Rated Ally . | . . . Total Orders . | . . . Ally Attacks . | . . . Total Damage . | . . . Kills . | . . . Allies Corrupted . | . . . Allies Melted . | . . . Intel | -11 -10 -9 ------- Run | Yrd Mat Mat Robot Analysis Total . | . . . Derelict Logs Recovered . | . . . Drone Launches . | . . . Drone Recoveries . | . . . Exploration | -11 -10 -9 ------------- Run | Yrd Mat Mat Turns Passed 4837 | 68 2539 2230 Spaces Moved 2646 | 51 1598 997 Core 21 | 12 . 9 Treads . | . . . Legs 2625 | 39 1598 988 Wheels . | . . . Hover . | . . . Flight . | . . . Fastest Speed 50 | 50 120 120 Average Speed 139 | 103 138 144 Slowest Speed 700 | 120 190 700 Overloaded Moves . | . . . Propulsion Burnouts . | . . . Robots Hopped . | . . . Cave-ins Triggered . | . . . Exploration Rate (%) 52 | 5 96 57 Regions Visited 2 Branch Regions . Pre-discovered Areas . | . . . Known Exits Taken . | . . . Unknown Exits Taken 2 | 1 1 . Scrap Searched . | . . . Spaces Dug 3 | . . 3 Terrain Destroyed 120 | . 6 114 Melee . | . . . Projectile 6 | . . 6 AOE 114 | . 6 108 Terrain Rammed . | . . . Walls Destroyed . | . . . Machines Disabled . | . . . Actions | -11 -10 -9 --------- Run | Yrd Mat Mat Total 3538 | 63 1836 1639 Wait 628 | . 141 487 Move 2644 | 50 1597 997 Hop . | . . . Pick Up 44 | 5 16 23 Fast Attach 24 | 7 3 14 Attach 5 | . 1 4 Detach 8 | 1 1 6 Swap 19 | . 4 15 Drop 31 | . 15 16 Fire 135 | . 58 77 Melee . | . . . Ram . | . . . Kick . | . . . Crush . | . . . Escape Stasis . | . . . Rewire . | . . . Trap . | . . . Miscellaneous . | . . . Route ------- -11/Scrapyard -10/Materials (discovered 5 exits: *Mat x3 / [*Min x2]) -9/Materials (discovered 2 exits: [*Mat] / [*Min]) History --------- Turn | Location | Event 3 | -11/Scrapyard | Discovered new exit (range 15) 69 | -11/Scrapyard | Entered Materials 214 | -10/Materials | Discovered new exit (range 8) 304 | -10/Materials | Build established: Mutant 1073 | -10/Materials | Repaired Ion Engine 1316 | -10/Materials | Discovered new exit (range 8) 1468 | -10/Materials | Discovered new exit (range 8) 1695 | -10/Materials | Discovered new exit (range 8) 1731 | -10/Materials | Core integrity fell below 50% 1818 | -10/Materials | Discovered new exit (range 15) 2608 | -10/Materials | Entered another Materials area 2608 | -9/Materials | Evolved 2 slots: Propulsion x2 3444 | -9/Materials | Discovered new exit (range 6) 3943 | -9/Materials | Destroyed 8 combat bots 4075 | -9/Materials | Discovered new exit (range 16) 4803 | -9/Materials | Core integrity fell below 50% 4832 | -9/Materials | Core integrity fell below 20% 4838 | -9/Materials | Destroyed by L-31 Rogue with Katana Last Messages --------------- 04601_ Destroyed Lgt. Ion Engine. 04601_ W-16 Scout knocked back. 04602_ K-01 Serf cleans the Machine. 04610_ Acquired 1 matter. 04699_ System corrupted: Matter fused (-9). 04732_ System corrupted: Matter fused (-10). 04745_ W-16 Scout sends out distress signal. 04776_ L-31 Rogue knocked back. 04787_ Mining Laser severed. 04792_ Deuterium Engine severed. [Achievement: Oops] 04792_ Acquired 4 matter. 04797_ Carbon-fiber Leg severed. 04797_ Acquired Deuterium Engine. 04804_ Imp. Light Cannon destroyed. 04805_ Dropped Shotgun. 04806_ Acquired Mining Laser. 04809_ Carbon-fiber Leg severed. 04817_ Hacking Suite destroyed. 04821_ Carbon-fiber Leg destroyed. Map ----- +----------------------------------------------------+ | """ ############ ##??? | | """ ## ##### ##???? | | """ # #???# #????? | | " " + """ #???# ##???? | | # """ #???# "#???? | | # """ #???# "#???? | | # #???#^^^###??? | | # """ #???#^^^" #??? | | + """ #???### ###??? | | ^ ##### """ #?????# #????? | | ^##+####### #???### ###??? | | ### ###########???# #??? | | # #?????????????# #??? | | # """ #?????????????# r #??? | | # """ #?????????????# r #??? | | # """ #?????????????# #??? | | # #??????????##### ##??? | | ########??????#####"### #???? | | #?????????????# [ + #???? | | #?????????????# # #???? | | #?????????????# = # k #???? | | ###?????????????#########g #???? | | ????????????????????????# #???? | | ????????????????????????# #???? | | ????????????????????????# l #???? | | ????????????????????????#@ #???? | | ???????????????????????# #??? | | ?????????????????????? #??? | | ????????????????????? T #??? | | ???????????????????? #??? | | ???????????????????##### #??? | | ???????????????????????### ###??? | | ?????????????????????????# #????? | | ????????????????????????? +????? | | ????????????????????????? #????? | | ????????????????????????? #????? | | ?????????????????????????? +????? | | ??????????????????????????##????? | | ????????????????????????????????? | | ????????????????????????????????? | | ????????????????????????????????? | | ????????????????????????????????? | | ????????????????????????????????? | | ????????????????????????????????? | | ????????????????????????????????? | | ????????????????????????????????? | | ????????????????????????????????? | | ????????????????????????????????? | | ????????????????????????????????? | | ????????????????????????????????? | +----------------------------------------------------+ Best States ------------- Heat Dissipation 28 Energy Generation 14 Energy Capacity 275 Matter Stores 300 Matter Capacity 300 Sight Range 16 Terrain Scan Density 10 Utility Shielding 33 Evasion (%) 55 Targeting Accuracy 6 Offensive Hacking 10 Item Schematics ----------------- Imp. Light Cannon | -9/Materials | Scanalyzed Robot Schematics ------------------ None Fabricated ------------ Nothing Alien Tech Used ----------------- None Achievements -------------- Oops Quick And Dirty Use The Force Challenges ------------ None Game ------ Seed ChainRestorationInsulator Manual? 0 Play Time 01:12:28 Cumulative 13.9 hours Start 2024.02.28 @ 20:33:20 End 2024.02.28 @ 22:26:41 Sessions 5 Manual Loads 0 Difficulty Rogue Special Mode None Game No. 9 Rogue 9 Adventurer 0 Explorer 0 Win Type - Total 0 Types 0/0/0/0/0/0/0/0/0 Lore% 5 Gallery% 10 Achievement% 13 Wizard Run 0 Options --------- Layout 2 ASCII 0 Keyboard 1 Movement Numpad Keybinds 1 Fullscreen 2 Font 32/SmallcapsGlow Map View 50x49 Zoom Use 10% Tactical HUD 1 Map Filters NONE Filters NONE Steam 1 RUN: e4cc4f84-2d60-4736-bd65-f022509f89fa